bitfinex/quotes_ETHUSD_20220118
["timestamp","ask_amount","ask_price","bid_price","bid_amount"]
[1642507929790,0.5774,3164.6,3164.3,0.0788815]
[1642507929988,0.5774,3164.6,3164.4,0.00170528]
[1642507930588,1.36766,3164.6,3164.4,0.00170528]
[1642507930793,1.18452698,3164.5,3164.4,0.00170528]
[1642507930987,1.63552698,3164.5,3164.4,0.00170528]
[1642507931388,1.63552698,3164.5,3164.2,0.00284212]
[1642507934837,6.19037,3164.3,3164.2,0.00284212]
[1642507935036,9.79368557,3164.3,3164.2,0.00284212]
[1642507935235,10.24468557,3164.3,3164.2,0.00284212]
[1642507935436,10.24468557,3164.3,3164.0,1.6157691]
[1642507935437,2.85,3164.2,3164.0,1.6157691]
[1642507935636,5.83123971,3164.1,3164.0,1.6157691]
[1642507936039,5.83123971,3164.1,3164.0,1.61690595]
[1642507936436,3.2,3164.0,3163.6,0.1264]
[1642507936636,0.79045,3163.9,3163.6,0.1264]
[1642507936887,3.97467902,3163.9,3163.7,0.00170527]
[1642507937089,3.20074065,3163.8,3163.7,0.00170527]
[1642507937290,5.45653927,3163.8,3163.7,0.00170527]
[1642507937489,3.20653927,3163.8,3163.6,0.00227369]
[1642507937691,4.16543725,3163.7,3163.6,0.00227369]
[1642507937891,1.16543725,3163.7,3163.6,0.00227369]
[1642507938389,4.38900214,3163.7,3163.6,0.00227369]
[1642507938595,1.16543725,3163.7,3163.3,0.00397896]
[1642507938790,0.1264,3163.6,3163.3,0.00397896]
[1642507939396,2.37539,3163.6,3163.3,0.00397896]
[1642507939594,3.16578,3163.6,3163.3,0.00397896]
[1642507939995,2.37529,3163.6,3163.3,0.00397896]
[1642507940197,2.69802058,3163.5,3163.3,0.00397896]
[1642507940399,0.1264,3163.4,3163.3,0.00397896]
[1642507940635,0.91683,3163.4,3163.1,0.00511581]
[1642507941142,0.1264,3163.4,3163.1,0.00511581]
[1642507941834,0.79043,3163.4,3163.1,0.00511581]
[1642507942035,0.79043,3163.4,3162.9,0.00625266]
[1642507942334,0.79043,3163.4,3162.9,1.19306625]
[1642507942533,0.79043,3163.4,3162.9,1.30625266]
[1642507942735,2.69802058,3163.3,3163.0,0.00568423]
[1642507943336,3.38852058,3163.3,3163.0,0.00568423]
[1642507943536,3.38852058,3163.3,3162.8,2.37817422]
[1642507943537,1.44758531,3163.2,3162.9,0.00625266]
[1642507943742,2.36453531,3163.2,3163.0,2.37817422]
[1642507944137,2.36453531,3163.2,3163.1,0.00511581]
[1642507944390,2.36453531,3163.2,3162.7,3.20703392]
[1642507944391,5.4,3163.1,3162.7,3.20703392]
[1642507944596,5.51975211,3163.2,3161.8,5.38885639]
[1642507944597,0.01216663,3162.8,3161.8,5.38885639]
[1642507944791,0.451,3162.7,3161.8,5.38885639]
[1642507944988,0.5774,3162.7,3161.8,5.38885639]
[1642507945189,0.5774,3162.7,3162.6,3.23214687]
[1642507945388,0.1264,3163.1,3162.6,3.23214687]
[1642507945588,0.1264,3163.1,3162.6,3.23498899]
[1642507945988,0.1264,3163.1,3162.6,3.53498899]
[1642507946189,0.1264,3163.1,3162.6,0.30284212]
[1642507946396,0.00655317,3163.2,3162.7,1.8977853]
[1642507946588,0.79061,3162.8,3162.7,1.8977853]
[1642507946987,0.79061,3162.8,3162.7,2.1977853]
[1642507947388,0.79061,3162.8,3161.8,7.6162]
[1642507947589,0.79061,3162.8,3161.8,3.9771]
[1642507947789,0.79061,3162.8,3161.9,0.00682108]
[1642507948042,0.1264,3162.7,3161.9,0.00682108]
[1642507948236,0.1264,3162.7,3162.2,1.11237951]
[1642507948237,0.79062,3162.6,3162.2,1.11237951]
[1642507948436,0.79062,3162.6,3162.3,1.9807708]
[1642507948736,0.79062,3162.6,3162.4,0.00397896]
[1642507949041,1.5813,3162.7,3162.4,0.00397896]
[1642507949042,0.1264,3162.7,3162.4,0.00397896]
[1642507949339,0.1264,3162.9,3162.4,0.00397896]
[1642507949542,0.79055,3162.8,3162.4,0.00397896]
[1642507950140,0.1264,3163.1,3162.7,1.37634451]
[1642507950540,0.1264,3163.1,3162.8,0.00170527]
[1642507950541,0.91687,3163.1,3162.8,0.00170527]
[1642507950845,0.00278187,3162.9,3162.8,0.00170527]
[1642507951244,0.00278187,3162.9,3162.4,0.3]
[1642507951245,0.12918187,3162.9,3162.5,0.00341054]
[1642507951442,0.00278187,3162.9,3162.5,0.00341054]
[1642507951646,0.00278187,3162.9,3162.4,0.3]
[1642507951647,0.1264,3162.8,3162.4,1.47239836]
[1642507951887,0.1264,3162.8,3162.5,0.00341054]
[1642507952695,0.91702,3162.8,3162.5,0.00341054]
[1642507953096,2.21183714,3162.8,3162.5,0.00341054]
[1642507953296,2.33823714,3162.8,3162.5,0.00341054]
[1642507953494,2.33823714,3162.8,3162.2,2.4348663]
[1642507953797,3.52733714,3162.8,3162.3,0.00454739]
[1642507954198,0.7908,3162.7,3162.3,0.00454739]
[1642507954395,0.1264,3162.6,3162.3,0.00454739]
[1642507954995,0.1264,3162.6,3162.0,0.30625266]
[1642507955197,0.79081,3162.5,3162.3,0.00454739]
[1642507955393,0.79081,3162.5,3162.1,0.00568423]
[1642507955394,7.17759839,3162.4,3162.1,0.00568423]
[1642507955635,8.80842444,3162.4,3161.6,0.00852635]
[1642507955834,5.55798,3162.4,3161.6,0.00852635]
[1642507956135,0.1264,3162.4,3162.0,2.00074323]
[1642507956334,0.1264,3162.4,3162.0,2.30074323]
[1642507956534,0.1264,3162.4,3162.1,0.00568423]
[1642507956753,0.1264,3162.5,3162.1,0.00568423]
[1642507957536,0.79077,3162.4,3162.1,0.00568423]
[1642507960791,0.13047039,3162.3,3162.1,0.00568423]
[1642507960990,0.11967084,3162.3,3162.1,0.00568423]
[1642507961790,1.34120383,3162.3,3162.1,0.00568423]
[1642507961996,2.69993574,3162.2,3162.1,0.00568423]
[1642507962492,2.69993574,3162.2,3162.1,0.30568423]
[1642507963233,2.69993574,3162.2,3162.1,0.00568423]
[1642507963636,2.69993574,3162.2,3161.4,2.5603771]
[1642507963637,5.8976803,3162.2,3161.5,0.00909478]
[1642507963836,0.5775,3162.1,3161.5,0.00909478]
[1642507964040,3.1628359,3162.0,3161.5,0.00909478]
[1642507964240,4.0,3161.8,3161.4,2.5603771]
[1642507964442,1.66038278,3161.7,3161.4,2.5603771]
[1642507964650,0.1265,3161.6,3161.4,2.5603771]
[1642507965043,0.91753,3161.6,3161.4,2.5603771]
[1642507965444,0.1265,3161.6,3161.4,2.5603771]
[1642507965642,0.1265,3161.6,3161.4,2.8603771]
[1642507966245,0.91749,3161.6,3161.4,2.5603771]
[1642507966644,2.69993574,3161.5,3161.4,2.5603771]
[1642507966883,2.82643574,3161.5,3161.4,2.5603771]
[1642507967481,2.69993574,3161.5,3161.4,2.5603771]
[1642507967683,4.30651996,3161.5,3161.4,2.5603771]
[1642507968686,2.69993574,3161.5,3161.4,2.5603771]
[1642507969288,2.82643574,3161.5,3161.4,2.5603771]
[1642507970088,2.69993574,3161.5,3161.4,2.5603771]
[1642507970738,2.70666354,3161.5,3161.4,2.5603771]
[1642507971039,3.49768354,3161.5,3161.4,2.5603771]
[1642507971739,5.10242271,3161.5,3161.4,2.5603771]
[1642507972140,4.31140271,3161.5,3161.4,2.5603771]
[1642507976988,4.43790271,3161.5,3161.4,2.5603771]
[1642507977188,7.88555912,3161.5,3161.4,2.5603771]
[1642507977589,0.79112,3161.2,3160.4,3.7082]
[1642507977793,1.58224,3161.2,3160.4,4.0082]
[1642507978040,1.11757968,3160.9,3160.6,2.24430212]
[1642507978236,3.31914284,3161.3,3160.6,2.24430212]
[1642507978434,1.35865448,3161.2,3160.7,0.00454738]
[1642507978635,1.23215448,3161.2,3160.7,0.00454738]
[1642507979234,0.79112,3160.9,3160.7,0.00454738]
[1642507980642,0.79112,3160.9,3160.6,2.54229673]
[1642507981642,0.00415835,3161.1,3160.6,2.54229673]
[1642507982188,0.00170527,3161.0,3160.6,5.74229673]
[1642507982588,0.00415835,3161.1,3160.9,1.30059519]
[1642507982790,0.00415835,3161.1,3160.9,1.60059519]
[1642507982992,0.00170527,3161.0,3160.9,1.60059519]
[1642507983891,0.00170527,3161.0,3160.9,4.77662355]
[1642507984092,0.00170527,3161.0,3160.9,1.91265851]
[1642507984303,0.00170527,3161.0,3160.9,2.91265851]
[1642507984691,0.00170527,3161.0,3160.9,7.31265851]
[1642507984892,0.00170527,3161.0,3160.9,8.31265851]
[1642507985550,0.00585879,3161.0,3160.9,8.31265851]
[1642507986234,0.00585879,3161.0,3160.9,11.5405236]
[1642507986435,0.00585879,3161.0,3160.9,11.52846028]
[1642507986834,0.00585879,3161.0,3160.9,14.89587148]
[1642507987834,0.00585879,3161.0,3160.9,11.52846028]
[1642507989285,0.00585879,3161.0,3160.9,8.30059519]
[1642507989692,0.00585879,3161.0,3160.9,11.32111228]
[1642507990294,0.00585879,3161.0,3160.9,2.90059519]
[1642507990700,0.00585879,3161.0,3160.9,5.35059519]
[1642507991694,0.00585879,3161.0,3160.9,8.46176851]
[1642507992495,0.1265,3161.6,3160.9,8.46176851]
[1642507992496,0.1265,3162.1,3160.9,9.33036851]
[1642507992694,0.1265,3162.5,3161.2,0.022932]
[1642507992893,0.1265,3162.5,3161.4,0.79065]
[1642507992894,0.00284211,3161.5,3161.4,0.79065]
[1642507993144,0.00284211,3161.5,3161.4,4.47465337]
[1642507993353,0.00284211,3161.5,3161.4,5.95742975]
[1642507993548,0.00284211,3161.5,3161.4,6.86959101]
[1642507993743,0.00284211,3161.5,3161.4,6.89838953]
[1642507994145,0.00284211,3161.5,3161.4,3.87342638]
[1642507994351,0.00284211,3161.5,3161.4,2.87342638]
[1642507994549,0.00284211,3161.5,3161.4,2.57342638]
[1642507994749,0.00284211,3161.5,3161.4,2.27342638]
[1642507995549,0.00284211,3161.5,3161.4,5.24023693]
[1642507995750,0.00284211,3161.5,3161.4,6.50519913]
[1642507996149,0.00284211,3161.5,3161.4,7.80519913]
[1642507996349,0.00284211,3161.5,3161.4,8.10519913]
[1642507996550,0.00284211,3161.5,3161.4,5.84517998]
[1642507996784,0.00284211,3161.5,3161.4,2.87342638]
[1642507998687,0.00284211,3161.5,3161.4,3.87342638]
[1642507998886,0.00284211,3161.5,3161.4,2.87342638]
[1642507999087,0.00284211,3161.5,3161.4,3.87342638]
[1642507999287,0.00284211,3161.5,3161.4,2.87342638]
[1642507999691,0.00284211,3161.5,3161.4,6.07342638]
[1642508002739,0.00284211,3161.5,3161.4,5.77342638]
[1642508003541,0.00284211,3161.5,3161.4,11.00840784]
[1642508003941,1.59935698,3162.9,3161.5,5.4]
[1642508004141,1.59935698,3162.8,3161.8,0.7904]
[1642508004389,1.59935698,3162.8,3162.3,2.15380152]
[1642508004390,0.00682109,3162.7,3162.3,2.15380152]
[1642508004588,0.13322109,3162.7,3162.3,2.15380152]
[1642508004789,0.00625266,3162.6,3162.3,2.75380152]
[1642508004989,1.39452683,3162.6,3162.3,2.75380152]
[1642508005189,0.00568424,3162.5,3162.3,2.75380152]
[1642508005589,0.00511582,3162.4,3162.1,0.3]
[1642508005990,0.00454739,3162.3,3162.1,0.3]
[1642508006394,0.00397897,3162.2,3162.1,0.3]
[1642508006592,0.00397897,3162.2,3162.1,3.34728465]
[1642508006791,0.00397897,3162.2,3162.1,4.34728465]
[1642508006990,0.00397897,3162.2,3162.1,5.13781465]
[1642508007392,0.00397897,3162.2,3162.1,5.92827465]
[1642508007792,0.00397897,3162.2,3162.1,5.13781465]
[1642508008336,0.00397897,3162.2,3162.1,4.34046027]
[1642508010541,0.00397897,3162.2,3162.1,7.54046027]
[1642508010744,0.00397897,3162.2,3162.1,10.56127713]
[1642508011143,0.00397897,3162.2,3162.1,7.54046027]
[1642508011785,2.70363334,3162.2,3162.1,7.54046027]
[1642508013386,0.00397897,3162.2,3162.1,7.54046027]
[1642508014690,0.00397897,3162.2,3162.1,3.99053]
[1642508014893,0.13037897,3162.2,3162.1,3.2]
[1642508015095,0.00397897,3162.2,3162.1,3.2]
[1642508015293,3.48037897,3162.2,3162.1,3.2]
[1642508015734,0.13037897,3162.2,3162.1,3.2]
[1642508015936,1.66346689,3162.2,3162.1,3.2]
[1642508016237,4.36371827,3162.2,3162.1,3.2]
[1642508020693,4.35371827,3162.2,3162.1,3.2]
[1642508023139,7.81243901,3162.2,3162.1,3.2]
[1642508023337,8.11243901,3162.2,3162.1,3.2]
[1642508023538,4.4,3162.1,3161.2,0.0008]
[1642508023740,0.791,3161.9,3161.2,0.0008]
[1642508023937,3.89710552,3161.8,3161.3,0.00511581]
[1642508024138,1.24656592,3161.7,3161.3,0.00511581]
[1642508024342,3.44976621,3161.6,3161.3,0.00511581]
[1642508024539,0.4265,3161.6,3161.3,0.00511581]
[1642508024748,0.1265,3161.6,3161.3,0.00511581]
[1642508025644,0.1265,3161.6,3160.6,1.1654486]
[1642508025645,0.01202034,3161.4,3160.6,1.1654486]
[1642508025844,5.41260642,3160.7,3160.6,1.1654486]
[1642508026041,7.02230642,3160.7,3160.6,1.1654486]
[1642508026242,7.02230642,3160.7,3160.0,1.36802179]
[1642508026444,0.7913997,3160.5,3160.0,2.179e-05]
[1642508026645,5.49148,3160.2,3160.1,0.00682108]
[1642508026894,5.49148,3160.2,3159.5,4.04953372]
[1642508026895,3.6,3160.1,3159.5,4.04953372]
[1642508027094,0.451,3160.0,3159.6,0.00284212]
[1642508027301,0.1265,3159.9,3159.6,0.00284212]
[1642508027495,5.4,3159.7,3159.5,7.584e-05]
[1642508027697,1.36918,3159.6,3159.5,7.584e-05]
[1642508027896,0.451,3159.6,3159.5,7.584e-05]
[1642508028297,0.79151,3159.7,3159.5,7.584e-05]
[1642508028699,0.79151,3159.7,3159.4,1.24021005]
[1642508028902,1.58421684,3159.8,3159.4,1.24021005]
[1642508028903,0.00113684,3159.8,3159.4,1.24021005]
[1642508029100,0.00113684,3159.8,3159.4,2.84021005]
[1642508029302,0.00113684,3159.8,3159.5,0.1265]
[1642508029499,0.00113684,3159.8,3159.5,1.4265]
[1642508029699,0.00113684,3159.8,3159.5,0.4265]
[1642508029905,0.00113684,3159.8,3159.5,1.21766]
[1642508030100,0.00113684,3159.8,3159.6,0.3]
[1642508031137,0.00113684,3159.8,3159.6,3.34254654]
[1642508031540,0.00113684,3159.8,3159.5,0.1265]
[1642508032038,0.00113684,3159.8,3159.4,4.44021005]
[1642508032039,0.79250684,3159.8,3159.4,4.44021005]
[1642508032239,0.00113684,3159.8,3159.4,4.44021005]
[1642508032838,0.00113684,3159.8,3159.4,4.74021005]
[1642508036194,0.00113684,3159.8,3159.5,3.08518097]
[1642508036396,0.00113684,3159.8,3159.5,4.08518097]
[1642508036596,0.00113684,3159.8,3159.5,2.09105]
[1642508037501,0.00113684,3159.8,3159.6,3.7899477]
[1642508037695,0.00113684,3159.8,3159.6,0.6327712]
[1642508037894,0.00113684,3159.8,3159.7,7.0]
[1642508038138,0.00113684,3159.8,3159.7,7.1265]
[1642508038738,0.00113684,3159.8,3159.7,7.0]
[1642508040942,0.00113684,3159.8,3159.7,10.14401282]
[1642508041145,0.00113684,3159.8,3159.7,11.83937358]
[1642508041344,0.00113684,3159.8,3159.7,8.69536076]
[1642508041345,3.684e-05,3159.8,3159.7,8.69536076]
[1642508041543,3.684e-05,3159.8,3159.7,27.21536076]
[1642508041797,2.70025138,3160.9,3160.1,0.79079]
[1642508041996,2.70025138,3160.9,3160.3,0.3]
[1642508042198,0.00568424,3160.8,3160.3,0.4265]
[1642508042397,0.00568424,3160.8,3160.3,0.3]
[1642508042597,0.00511582,3160.7,3160.4,1.21004821]
[1642508042801,0.00511582,3160.7,3160.5,0.3]
[1642508042997,0.1265,3161.4,3160.5,0.3]
[1642508042998,0.00454739,3160.6,3160.5,0.3]
[1642508044803,0.00454739,3160.6,3160.5,7.40811]
[1642508045002,0.00454739,3160.6,3160.5,8.06701]
[1642508045203,0.00454739,3160.6,3160.5,28.07331645]
[1642508045637,0.1265,3161.7,3160.5,9.51801]
[1642508045638,4.88303348,3161.7,3160.5,9.51801]
[1642508045838,1.59935698,3161.7,3161.3,1.65128519]
[1642508046040,0.00454739,3161.4,3161.3,1.95128519]
[1642508046238,0.13104739,3161.4,3161.3,1.95128519]
[1642508046437,0.00454739,3161.4,3161.3,1.95128519]
[1642508046637,0.00454739,3161.4,3161.3,3.28358279]
[1642508047037,0.00454739,3161.4,3161.3,9.83358279]
[1642508047237,0.00454739,3161.4,3161.3,3.58358279]
[1642508047441,0.00454739,3161.4,3161.3,4.58358279]
[1642508047639,2.82689909,3161.6,3161.4,3.3]
[1642508048041,2.82689909,3161.6,3161.5,1.0]
[1642508048238,0.1265,3161.6,3161.5,1.6]
[1642508048539,1.59935698,3162.2,3161.6,7.32148]
[1642508048938,0.00397897,3162.1,3161.7,1.3]
[1642508049140,0.00397897,3162.1,3161.7,1.6]
[1642508049401,1.59935698,3162.2,3161.8,3.10223412]
[1642508049402,0.00341054,3162.0,3161.8,3.10223412]
[1642508049601,0.00341054,3162.0,3161.9,1.0]
[1642508049801,1.59935698,3162.4,3161.9,1.0]
[1642508050001,1.59935698,3162.4,3161.8,3.27884188]
[1642508050202,0.00397897,3162.1,3161.8,3.27884188]
[1642508050400,0.00397897,3162.1,3161.8,2.48836188]
[1642508050605,0.00341054,3162.0,3161.8,1.0]
[1642508051002,0.00284212,3161.9,3161.8,1.0]
[1642508052606,0.00284212,3161.9,3161.7,5.2931]
[1642508052607,0.12934212,3161.9,3161.7,4.6931]
[1642508052810,0.00284212,3161.9,3161.7,4.6931]
[1642508053064,1.30620771,3161.6,3160.9,0.79084]
[1642508053258,0.79088,3161.7,3160.9,5.36354]
[1642508053454,0.1265,3161.6,3161.0,0.00227369]
[1642508053655,0.12763685,3161.6,3161.0,0.00227369]
[1642508054067,0.12763685,3161.6,3161.3,2.04075771]
[1642508054253,0.12763685,3161.6,3161.3,3.30628905]
[1642508054660,0.12763685,3161.6,3161.3,3.60628905]
[1642508054859,0.12763685,3161.6,3161.4,1.0]
[1642508055060,0.00113685,3161.6,3161.4,1.0]
[1642508055259,0.00113685,3161.6,3161.5,5.3919568]
[1642508055463,0.00113685,3161.6,3161.5,3.0419568]
[1642508055659,0.00113685,3161.6,3161.5,4.3419568]
[1642508055869,0.00113685,3161.6,3161.5,4.4684568]
[1642508056888,0.00113685,3161.6,3161.5,8.4684568]
[1642508057291,0.00113685,3161.6,3161.5,8.9194568]
[1642508057692,0.00113685,3161.6,3161.5,4.9194568]
[1642508058290,0.00113685,3161.6,3161.5,1.8775]
[1642508058496,0.00113685,3161.6,3161.5,1.4265]
[1642508058692,0.00113685,3161.6,3161.5,1.7265]
[1642508058890,0.00113685,3161.6,3161.5,0.6]
[1642508059090,0.00113685,3161.6,3161.5,0.3]
[1642508059397,0.00454117,3161.5,3161.2,0.1265]
[1642508059598,0.00113685,3161.6,3161.0,0.12877369]
[1642508059796,0.00113685,3161.6,3161.0,0.00227369]
[1642508059994,0.00113685,3161.6,3161.1,0.00170527]
[1642508060394,1.43841317,3161.4,3161.1,0.00170527]
[1642508061644,0.1265,3161.3,3161.1,0.00170527]
[1642508063653,4.65,3161.2,3161.1,0.00170527]
[1642508063846,12.73207217,3161.2,3161.1,0.00170527]
[1642508064046,13.52323217,3161.2,3160.6,0.00454739]
[1642508064296,0.1265,3161.1,3160.6,0.00454739]
[1642508064494,0.451,3161.0,3160.6,0.00454739]
[1642508064694,0.1265,3160.9,3160.6,0.00454739]
[1642508064895,1.24218,3160.8,3160.6,0.00454739]
[1642508065495,1.28330901,3160.7,3160.6,0.00454739]
[1642508065696,1.40980901,3160.7,3160.6,0.00454739]
[1642508066599,4.11063233,3160.7,3160.6,0.00454739]
[1642508066997,7.4750953,3160.7,3160.6,0.00454739]
[1642508067396,7.4750953,3160.7,3159.8,0.00909477]
[1642508067597,1.5826098,3160.5,3159.8,0.00909477]
[1642508067797,0.5775,3160.4,3159.8,0.00909477]
[1642508068036,1.17091336,3159.9,3159.8,0.00909477]
[1642508068237,1.29741336,3159.9,3159.8,0.00909477]
[1642508068437,0.1265,3160.1,3159.8,0.00909477]
[1642508068637,0.79132,3160.1,3159.8,0.00909477]
[1642508068837,0.1265,3160.0,3159.8,0.00909477]
[1642508069236,2.0180003,3160.3,3159.8,0.00909477]
[1642508070242,1.19766605,3160.0,3159.8,0.00909477]
[1642508074402,1.98900605,3160.0,3159.4,0.01136847]
[1642508074603,2.11550605,3160.0,3159.4,0.01136847]
[1642508075742,1.98900605,3160.0,3159.4,0.01136847]
[1642508076142,1.19766605,3160.0,3159.4,0.01136847]
[1642508076346,1.21828934,3159.5,3159.4,0.01136847]
[1642508077744,0.79142,3159.7,3159.4,0.01136847]
[1642508078345,0.5775,3159.6,3159.4,0.01136847]
[1642508078643,0.5775,3159.6,3159.3,0.01193689]
[1642508079304,1.28356513,3159.5,3159.3,0.01193689]
[1642508079494,3.8265,3159.4,3159.3,0.01193689]
[1642508080094,0.1265,3159.4,3159.3,0.01193689]
[1642508080698,1.73456513,3159.5,3159.3,0.01193689]
[1642508083039,3.7265,3159.4,3159.3,0.01193689]
[1642508083338,3.6,3159.4,3159.3,0.01193689]
[1642508086447,0.451,3159.5,3159.3,0.01193689]
[1642508086647,1.59935698,3159.6,3159.3,0.01193689]
[1642508087501,1.59935698,3159.6,3159.3,1.04243689]
[1642508087701,1.59935698,3159.6,3159.4,1.39574653]
[1642508087901,1.3025,3160.2,3159.4,1.707115]
[1642508087902,1.176,3160.2,3159.4,1.707115]
[1642508088102,0.1265,3160.4,3159.5,0.03614871]
[1642508088302,0.1265,3160.4,3159.5,0.82728871]
[1642508088502,5.29283538,3160.6,3159.7,0.04183536]
[1642508088702,4.05213538,3160.6,3159.7,2.1357942]
[1642508089007,7.83914064,3161.5,3159.9,0.04466727]
[1642508089008,5.27113538,3161.1,3159.9,0.04466727]
[1642508089203,4.05213538,3161.1,3159.9,0.04466727]
[1642508089408,4.05213538,3161.1,3160.5,1.12418466]
[1642508089804,4.05213538,3161.1,3160.7,2.17496138]
[1642508090205,4.05213538,3161.1,3160.8,0.00341054]
[1642508090641,1.50510195,3161.3,3160.8,0.00341054]
[1642508090841,0.1265,3161.3,3160.8,0.00341054]
[1642508091445,0.7910786,3161.5,3160.8,0.00341054]
[1642508091643,0.1265,3161.4,3160.8,0.00341054]
[1642508091842,0.79107,3161.3,3160.8,0.00341054]
[1642508092246,1.10603723,3161.4,3160.8,0.00341054]
[1642508092543,0.1265,3161.3,3160.8,0.00341054]
[1642508093546,2.70153235,3161.2,3160.8,0.00341054]
[1642508094399,0.1265,3161.3,3160.8,0.00341054]
[1642508094800,0.7911,3161.2,3160.8,0.00341054]
[1642508094996,0.1265,3161.1,3160.8,0.00341054]
[1642508096897,0.79105,3161.5,3160.8,0.00341054]
[1642508097098,0.1265,3161.4,3160.8,0.00341054]
[1642508097697,0.79108,3161.3,3160.8,0.00341054]
[1642508098140,3.49256811,3161.3,3160.8,0.00341054]
[1642508098542,3.49256811,3161.3,3160.8,3.20341054]
[1642508098943,0.79108,3161.3,3160.9,0.00284212]
[1642508099947,1.37847261,3161.4,3160.9,0.00284212]
[1642508100152,0.1265,3161.3,3160.9,0.00284212]
[1642508100348,0.1265,3161.4,3160.9,0.00284212]
[1642508100648,2.70156661,3161.2,3160.9,0.00284212]
[1642508101450,0.1265,3161.4,3160.9,0.00284212]
[1642508101451,2.70156661,3161.3,3160.9,0.00284212]
[1642508102698,3.49264661,3161.3,3160.9,0.00284212]
[1642508103697,0.79108,3161.3,3160.9,0.00284212]
[1642508104097,2.70156661,3161.4,3160.9,0.00284212]
[1642508104903,2.70156661,3161.2,3160.9,0.00284212]
[1642508106343,0.1265,3161.3,3160.9,0.00284212]
[1642508106945,2.70156661,3161.2,3160.9,0.00284212]
[1642508109402,2.70156661,3161.2,3161.0,1.3586645]
[1642508109602,2.70156661,3161.2,3161.0,2.717329]
[1642508109800,2.70156661,3161.2,3161.1,0.00170527]
[1642508111004,2.70156661,3161.2,3161.0,2.71507081]
[1642508112704,2.70156661,3161.2,3161.0,5.66924223]
[1642508112908,2.40647644,3161.3,3161.0,5.66924223]
[1642508113448,2.40647644,3161.3,3161.0,5.96924223]
[1642508113647,2.40647644,3161.3,3161.0,6.76007223]
[1642508114247,1.60804736,3161.3,3161.0,6.76007223]
[1642508114450,1.60804736,3161.3,3161.0,4.83585142]
[1642508114850,1.60804736,3161.3,3161.2,2.71507081]
[1642508115052,1.60804736,3161.3,3161.2,3.01507081]
[1642508115251,1.60918421,3161.3,3161.2,3.01507081]
[1642508116902,0.00113685,3161.3,3161.2,3.01507081]
[1642508118604,2.70270346,3161.3,3161.2,3.01507081]
[1642508119004,2.70270346,3161.3,3161.2,2.71507081]
[1642508119304,0.00113685,3161.3,3161.2,2.71507081]
[1642508120110,4.60113685,3161.3,3161.2,2.71507081]
[1642508120744,4.60113685,3161.3,3161.2,7.081e-05]
[1642508120947,5.06472179,3161.3,3161.2,7.081e-05]
[1642508121146,6.06472179,3161.3,3160.8,3.2]
[1642508121346,2.5825196,3161.2,3160.8,3.2]
[1642508121550,0.451,3161.1,3160.9,0.00113685]
[1642508121747,0.751,3161.1,3160.9,0.00113685]
[1642508121948,3.34296921,3161.0,3160.9,0.00113685]
[1642508122147,8.82046921,3161.0,3160.9,0.00113685]
[1642508122548,5.09916914,3161.0,3160.9,0.00113685]
[1642508122752,1.75619993,3161.0,3160.9,0.00113685]
[1642508122951,4.45753202,3161.0,3160.9,0.00113685]
[1642508123353,7.74426737,3161.0,3160.9,0.00113685]
[1642508124400,7.74426737,3161.0,3160.8,1.22580245]
[1642508124401,9.79513493,3161.0,3160.8,1.22580245]
[1642508124608,11.42386303,3160.9,3159.2,1.6157691]
[1642508124802,0.2469,3160.7,3159.2,1.6157691]
[1642508125102,0.5775,3160.6,3159.3,0.00909477]
[1642508125300,1.375066,3159.9,3159.3,0.00909477]
[1642508125500,1.375066,3159.9,3159.3,1.92344445]
[1642508125501,0.1265,3159.8,3159.3,1.92344445]
[1642508125705,0.1265,3159.8,3159.3,0.00909477]
[1642508125901,0.1265,3159.8,3159.4,0.00852635]
[1642508126100,0.451,3160.0,3159.4,0.00852635]
[1642508127604,0.1265,3159.9,3159.4,0.00852635]
[1642508127804,3.43578262,3159.9,3159.4,0.00852635]
[1642508128043,4.22727262,3159.9,3159.4,0.00852635]
[1642508128444,1.36112572,3159.6,3159.4,0.00852635]
[1642508128642,1.36112572,3159.6,3159.4,3.20852635]
[1642508128844,1.81212572,3159.6,3159.4,3.20852635]
[1642508129047,6.96212572,3159.6,3159.5,0.00795793]
[1642508129247,11.44525769,3159.6,3159.5,0.00795793]
[1642508129447,12.44525769,3159.6,3159.5,0.00795793]
[1642508129649,8.88016332,3159.6,3159.5,0.00795793]
[1642508129851,9.26094188,3159.6,3159.5,0.00795793]
[1642508130253,5.4,3159.5,3159.2,1.11621881]
[1642508130455,0.451,3159.4,3159.2,1.11621881]
[1642508130757,0.451,3159.4,3159.3,0.00113684]
[1642508131150,3.951,3159.4,3159.3,0.00113684]
[1642508131553,4.951,3159.4,3159.3,0.00113684]
[1642508131807,5.74266,3159.4,3159.3,0.00113684]
[1642508132302,2.24266,3159.4,3159.3,0.00113684]
[1642508132704,6.29800838,3159.4,3159.3,0.00113684]
[1642508132903,5.84700838,3159.4,3159.3,0.00113684]
[1642508133708,2.70262142,3159.4,3159.3,0.00113684]
[1642508134709,2.39377874,3159.5,3159.3,0.00113684]
[1642508135310,3.18530874,3159.5,3159.3,0.00113684]
[1642508136747,0.79153,3159.5,3159.3,0.00113684]
[1642508136948,5.84700838,3159.4,3159.3,0.00113684]
[1642508138149,2.82912142,3159.4,3159.3,0.00113684]
[1642508138950,5.97350838,3159.4,3159.3,0.00113684]
[1642508139152,5.84700838,3159.4,3159.3,0.00113684]
[1642508141304,3.14438696,3159.4,3159.3,0.00113684]
[1642508141502,0.79153,3159.5,3159.3,0.00113684]
[1642508142702,1.79153,3159.5,3159.3,0.00113684]
[1642508142902,0.1265,3159.4,3159.3,0.00113684]
[1642508143144,0.79153,3159.5,3159.3,0.00113684]
[1642508143649,1.79153,3159.5,3159.3,0.00113684]
[1642508144248,0.79153,3159.5,3159.3,0.00113684]
[1642508144749,3.72145465,3159.4,3159.3,0.00113684]
[1642508145149,1.17145465,3159.4,3159.3,0.00113684]
[1642508145650,0.79153,3159.5,3159.3,0.00113684]
[1642508148096,1.79153,3159.5,3159.3,0.00113684]
[1642508148296,0.79153,3159.5,3159.3,0.00113684]
[1642508148696,0.79153,3159.5,3159.2,1.11480155]
[1642508148902,0.91803,3159.5,3159.2,1.11480155]
[1642508149096,1.91803,3159.5,3159.2,1.11480155]
[1642508149298,0.91803,3159.5,3159.2,1.11480155]
[1642508149502,1.91803,3159.5,3159.2,1.11480155]
[1642508150954,1.583204,3159.3,3159.2,0.32325045]
[1642508151151,1.79153,3159.5,3159.2,0.32325045]
[1642508151152,0.79153,3159.5,3159.2,0.32325045]
[1642508151556,0.7915501,3159.4,3159.2,0.32325045]
[1642508153954,2.3748201,3159.4,3159.2,0.32325045]
[1642508154158,4.29163,3159.3,3159.2,0.32325045]
[1642508154401,0.79163,3159.3,3159.2,0.32325045]